bitfinex-derivatives/quotes_SOLF0:USTF0_20241021
["timestamp","ask_amount","ask_price","bid_price","bid_amount"]
[1729527923373,3.0536,163.77,163.65,5.02]
[1729527923574,3.0536,163.77,163.71,3.0545]
[1729527924075,5.02,163.76,163.65,5.02]
[1729527924467,5.02,163.76,163.72,3.0543]
[1729527926273,5.02,163.76,163.72,3.0544]
[1729527927682,5.02,163.76,163.68,3.0551]
[1729527927976,5.02,163.76,163.65,5.02]
[1729527928170,5.02,163.78,163.65,5.02]
[1729527928673,5.02,163.82,163.65,5.02]
[1729527928974,7.5929,163.83,163.78,3.0532]
[1729527931167,2.5729,163.83,163.78,3.0532]
[1729527931970,5.02,163.84,163.73,8.13104104]
[1729527932179,5.02,163.84,163.8,3.0528]
[1729527932580,5.02,163.84,163.73,5.02]
[1729527932880,3.0524,163.83,163.68,2.616]
[1729527933080,5.02,163.84,163.69,5.02]
[1729527933578,3.0529,163.8,163.69,5.02]
[1729527933772,9.43216881,163.79,163.69,5.02]
[1729527934282,10.70466881,163.79,163.69,5.02]
[1729527934469,4.306,163.78,163.63,1.9642]
[1729527934672,4.306,163.78,163.64,4.94]
[1729527934875,1.2526,163.78,163.71,3.0545]
[1729527935477,1.2526,163.78,163.64,8.02843972]
[1729527935686,1.2526,163.78,163.68,3.0551]
[1729527936173,1.2526,163.78,163.63,2.616]
[1729527936370,1.2526,163.78,163.63,7.556]
[1729527936575,1.2526,163.78,163.63,10.64472384]
[1729527936978,3.0543,163.73,163.67,3.0552]
[1729527937173,6.2251,163.72,163.61,4.94]
[1729527937383,4.94,163.71,163.62,3.10094552]
[1729527937579,4.94,163.71,163.63,3.05297543]
[1729527937780,4.94,163.71,163.61,4.94]
[1729527937974,2.5357,163.72,163.66,3.0554]
[1729527938277,7.4757,163.72,163.61,7.97403183]
[1729527939379,10.5301,163.72,163.61,7.97403183]
[1729527939679,10.5301,163.72,163.61,4.94]
[1729527939886,10.5301,163.72,163.65,3.0556]
[1729527940581,7.4757,163.72,163.61,7.97886646]
[1729527940775,1.2526,163.78,163.61,7.97886646]
[1729527941080,1.3345,163.77,163.61,7.97886646]
[1729527941273,6.2745,163.77,163.71,3.0545]
[1729527941471,6.2745,163.77,163.65,4.94]
[1729527941876,6.2745,163.77,163.66,3.2743]
[1729527941877,1.3345,163.77,163.66,3.2743]
[1729527942084,4.94,163.79,163.66,3.2743]
[1729527942886,4.94,163.79,163.76,3.0535]
[1729527943087,2.6148,163.86,163.71,4.94]
[1729527943383,4.94,163.85,163.78,3.0532]
[1729527944680,4.94,163.85,163.71,4.94]
[1729527944681,2.6148,163.86,163.79,3.0529]
[1729527944875,2.6148,163.86,163.69,4.94]
[1729527944876,4.94,163.85,163.69,4.94]
[1729527945684,4.94,163.85,163.7,2.99534607]
[1729527946595,7.992,163.85,163.7,2.99534607]
[1729527947187,4.94,163.85,163.78,3.0533]
[1729527947388,3.0528,163.81,163.72,4.94]
[1729527947594,7.95642285,163.8,163.66,90.35004702]
[1729527947798,7.95642285,163.8,163.75,3.0537]
[1729527948094,7.95642285,163.8,163.71,4.94]
[1729527948387,7.95642285,163.8,163.75,3.0538]
[1729527948588,7.95642285,163.8,163.71,4.94]
[1729527948894,4.94,163.81,163.71,4.94]
[1729527949090,4.94,163.81,163.77,3.0533]
[1729527952189,3.04861607,163.8,163.71,4.94]
[1729527952398,3.04861607,163.8,163.77,3.0535]
[1729527953595,3.04861607,163.8,163.78,3.0533]
[1729527953893,3.04861607,163.8,163.71,7.98892148]
[1729527954092,3.04861607,163.8,163.78,3.0532]
[1729527955500,4.94,163.81,163.71,4.94]
[1729527955893,4.94,163.81,163.71,7.92966518]
[1729527956093,4.94,163.81,163.76,3.0535]
[1729527956302,4.94,163.81,163.71,4.94]
[1729527956597,4.94,163.81,163.75,3.0537]
[1729527956903,1.3612,163.8,163.69,4.94]
[1729527957097,4.4721256,163.8,163.69,4.94]
[1729527957300,1.3612,163.8,163.69,4.94]
[1729527957599,1.3612,163.8,163.76,3.0536]
[1729527957799,4.37652229,163.8,163.68,6.1101]
[1729527958111,4.3883,163.79,163.73,3.0541]
[1729527958296,5.7243,163.79,163.73,3.0541]
[1729527958501,2.6711,163.79,163.66,8.2143]
[1729527958706,2.6711,163.79,163.71,3.0545]
[1729527959209,3.0536,163.77,163.71,3.0545]
[1729527959393,4.94,163.76,163.7,3.0547]
[1729527959994,4.94,163.76,163.66,7.5273]
[1729527960394,4.94,163.76,163.63,4.94]
[1729527960701,4.94,163.76,163.63,7.5005]
[1729527960889,4.94,163.76,163.63,2.5605]
[1729527961097,4.94,163.76,163.69,3.0549]
[1729527962199,7.9938,163.76,163.69,3.0549]
[1729527962798,7.9938,163.76,163.7,3.0547]
[1729527962998,4.94,163.76,163.64,4.94]
[1729527963601,7.9938,163.76,163.64,4.94]
[1729527963799,4.94,163.76,163.64,4.94]
[1729527964903,23.25,163.76,163.59,11.5480482]
[1729527965105,23.25,163.76,163.59,9.1704]
[1729527965610,23.25,163.76,163.59,14.1704]
[1729527965794,23.25,163.76,163.59,17.16201506]
[1729527965998,5.0,163.75,163.59,17.16201506]
[1729527966597,3.0541,163.74,163.67,3.0552]
[1729527966903,20.9811,163.79,163.63,5.0]
[1729527967207,3.054,163.75,163.63,5.0]
[1729527967402,5.0,163.74,163.63,8.00567312]
[1729527967598,5.0,163.74,163.7,3.0546]
[1729527967800,5.0,163.74,163.63,8.00567312]
[1729527968198,5.0,163.74,163.69,3.0549]
[1729527968405,5.0,163.74,163.63,5.0]
[1729527968604,3.0543,163.73,163.66,3.0555]
[1729527968810,1.2966,163.73,163.66,3.0555]
[1729527969006,2.6001,163.72,163.66,3.0555]
[1729527969306,5.69023822,163.72,163.66,3.0555]
[1729527969500,5.6546,163.72,163.66,3.0555]
[1729527970210,8.69431567,163.72,163.66,3.0555]
[1729527970411,23.94981567,163.72,163.55,9.4861]
[1729527970617,23.94981567,163.72,163.56,5.0]
[1729527970804,5.63981567,163.72,163.56,8.03299266]
[1729527971115,5.0,163.71,163.57,6.1143]
[1729527971612,8.0546,163.71,163.64,3.0558]
[1729527971910,5.0,163.7,163.57,6.1143]
[1729527972110,3.0556,163.66,163.6,3.0565]
[1729527972412,6.2873,163.65,163.55,1.3355]
[1729527972617,8.0561,163.64,163.53,3.0579]
[1729527972817,8.0561,163.64,163.49,2.37995198]
[1729527972818,6.3498,163.64,163.49,5.49945705]
[1729527973007,6.3498,163.64,163.48,5.0]
[1729527973314,3.0561,163.63,163.49,2.99571518]
[1729527973609,3.0561,163.63,163.48,5.0]
[1729527973913,3.0564,163.62,163.48,5.0]
[1729527974303,6.3498,163.64,163.48,5.0]
[1729527974505,6.3498,163.64,163.49,0.6865]
[1729527974713,1.3498,163.64,163.49,0.6865]
[1729527974908,5.0,163.63,163.5,1.2695]
[1729527975109,1.3498,163.64,163.62,3.0562]
[1729527975414,5.0,163.63,163.53,5.0]
[1729527975613,5.0,163.63,163.56,3.0574]
[1729527975803,5.0,163.63,163.53,5.0]
[1729527976211,5.0,163.63,163.58,3.0569]
[1729527976712,5.0,163.63,163.59,3.0567]
[1729527976913,5.0,163.63,163.53,5.0]
[1729527977516,5.0,163.63,163.56,3.0574]
[1729527977709,5.0,163.63,163.53,5.0]
[1729527978008,1.3498,163.64,163.44,5.0]
[1729527978212,5.0,163.63,163.57,3.0571]
[1729527978402,8.00873914,163.63,163.57,3.0571]
[1729527979812,8.00873914,163.63,163.5,6.3576]
[1729527980520,3.0564,163.62,163.54,3.0576]
[1729527980711,3.0564,163.62,163.5,6.3576]
[1729527980915,8.00873914,163.63,163.5,1.3576]
[1729527981217,5.0,163.62,163.5,1.3576]
[1729527981419,2.5843,163.65,163.51,5.0]
[1729527981608,8.11897229,163.68,163.51,5.0]
[1729527981812,5.0,163.67,163.52,6.1162]
[1729527982210,5.0,163.67,163.53,1.2301]
[1729527982812,8.0553,163.67,163.53,1.2301]
[1729527983118,5.0,163.67,163.53,1.2301]
[1729527983419,5.0,163.67,163.59,3.0567]
[1729527983613,3.0556,163.66,163.59,3.0567]
[1729527983809,5.0,163.67,163.53,1.2301]
[1729527984015,8.0554,163.67,163.53,1.2301]
[1729527984321,8.0554,163.67,163.59,3.0567]
[1729527984617,5.0,163.67,163.59,3.0567]
[1729527985613,3.0556,163.66,163.59,3.0567]
[1729527986019,3.0556,163.66,163.6,3.0566]
[1729527986418,3.11897229,163.68,163.53,6.2301]
[1729527986614,1.3049,163.7,163.53,6.2301]
[1729527986615,5.0,163.67,163.53,6.2301]
[1729527986930,3.12236932,163.66,163.53,6.2301]
[1729527987616,3.12236932,163.66,163.63,3.0559]
[1729527987820,5.0,163.67,163.57,5.0]
[1729527988023,3.1136573,163.66,163.57,5.0]
[1729527988321,5.0,163.67,163.57,5.0]
[1729527988624,5.0,163.67,163.58,1.3305]
[1729527989217,5.0,163.67,163.66,3.0555]
[1729527990228,2.6683,163.71,163.61,5.0]
[1729527990429,5.0,163.7,163.58,8.05862948]
[1729527991018,5.0,163.7,163.58,5.0]
[1729527991220,8.11534114,163.7,163.58,5.0]
[1729527991625,8.11534114,163.7,163.64,3.0557]
[1729527991927,8.11534114,163.7,163.58,5.0]
[1729527992321,5.0,163.69,163.58,8.00684059]
[1729527993020,5.0,163.69,163.67,3.0552]
[1729527994927,5.0,163.69,163.68,3.0551]
[1729527996820,5.0,163.69,163.65,3.0555]
[1729527997027,5.0,163.69,163.62,5.14]
[1729527998125,5.0,163.69,163.68,3.0551]
[1729527999828,1.3608,163.71,163.69,3.0549]
[1729528000332,4.34379364,163.71,163.69,3.0549]
[1729528001433,1.3608,163.71,163.69,3.0549]
[1729528001730,1.3608,163.71,163.62,5.14]
[1729528002331,4.36776244,163.71,163.62,5.14]
[1729528002931,4.36776244,163.71,163.69,3.0548]
[1729528003732,4.36776244,163.71,163.62,5.14]
[1729528003934,4.36776244,163.71,163.69,3.0549]
[1729528005030,4.36776244,163.71,163.7,3.0548]
[1729528006128,4.36776244,163.71,163.61,1.3211]
[1729528006330,4.36776244,163.71,163.6,6.4462]
[1729528006739,4.36776244,163.71,163.67,3.0552]
[1729528006927,4.36776244,163.71,163.6,6.4462]
[1729528007739,4.36776244,163.71,163.67,3.0552]
[1729528008637,4.36776244,163.71,163.6,6.4462]
[1729528008939,4.36776244,163.71,163.68,3.0551]
[1729528009137,4.36776244,163.71,163.6,6.4462]
[1729528009643,5.14,163.78,163.61,2.551]
[1729528009940,5.14,163.78,163.66,3.0555]
[1729528010129,3.01820312,163.78,163.67,5.14]
[1729528010336,5.14,163.77,163.67,5.14]
[1729528010528,8.21993632,163.77,163.73,3.0541]
[1729528011135,8.21993632,163.77,163.74,3.054]
[1729528011449,8.21993632,163.77,163.67,5.14]
[1729528011735,1.249,163.76,163.67,5.14]
[1729528012327,1.249,163.76,163.61,8.6637]
[1729528012539,1.249,163.76,163.63,5.14]
[1729528013344,4.3028,163.76,163.63,5.14]
[1729528014039,3.0544,163.73,163.61,6.4463]
[1729528014239,7.7013,163.72,163.61,6.4463]
[1729528015334,7.7013,163.72,163.68,3.055]
[1729528015536,7.7013,163.72,163.61,6.4463]
[1729528015537,5.14,163.72,163.61,6.4463]
[1729528015935,5.14,163.75,163.61,6.4463]
[1729528016141,5.14,163.75,163.62,11.2525]
[1729528016539,5.14,163.75,163.69,3.0548]
[1729528016944,5.14,163.75,163.62,11.2525]
[1729528017542,5.14,163.75,163.68,3.055]
[1729528017736,5.14,163.75,163.63,5.14]
[1729528017737,8.194,163.75,163.63,5.14]
[1729528018339,5.14,163.75,163.63,5.14]
[1729528018548,5.14,163.75,163.69,3.0548]
[1729528018745,5.14,163.75,163.61,1.3063]
[1729528018943,3.0545,163.72,163.65,3.0556]
[1729528019247,5.14,163.71,163.61,6.4463]
[1729528019449,5.14,163.71,163.61,1.3063]
[1729528019745,10.8635,163.71,163.65,3.0557]
[1729528020356,7.8089,163.71,163.58,1.3319]
[1729528020654,3.0548,163.7,163.64,3.0558]
[1729528020851,7.8089,163.71,163.58,1.3319]
[1729528021047,1.2546,163.69,163.58,6.4719]
[1729528021247,1.2546,163.69,163.64,3.0559]
[1729528021760,1.2546,163.69,163.58,6.4719]
[1729528021962,5.14,163.7,163.66,3.0554]
[1729528022160,5.14,163.7,163.59,3.01313746]
[1729528022557,5.14,163.7,163.66,3.0554]
[1729528022754,5.14,163.7,163.6,1.2522]
[1729528023151,5.14,163.72,163.63,3.056]
[1729528023355,5.14,163.72,163.63,5.14]
[1729528025360,5.14,163.72,163.68,3.055]
[1729528025553,5.14,163.72,163.63,5.14]
[1729528025960,5.14,163.72,163.69,3.0548]
[1729528026454,5.04,163.73,163.7,3.0547]
[1729528026655,3.9104,163.76,163.63,5.14]
[1729528026848,1.3389,163.76,163.63,5.14]
[1729528027052,8.11993632,163.77,163.73,3.0541]
[1729528027449,3.07993632,163.77,163.68,5.04]
[1729528027647,5.04,163.77,163.68,5.04]
[1729528027859,5.04,163.77,163.74,3.0539]
[1729528028460,8.15148334,163.78,163.68,5.04]
[1729528028663,1.3308,163.81,163.69,1.297]
[1729528028853,4.36587917,163.81,163.69,2.6602]
[1729528029052,5.04,163.8,163.72,3.0543]
[1729528029263,5.04,163.8,163.69,2.6602]
[1729528029761,5.04,163.8,163.74,3.0539]
[1729528029963,5.04,163.8,163.69,2.6602]
[1729528030858,5.04,163.8,163.76,3.0535]
[1729528031360,5.04,163.8,163.72,5.04]
[1729528031561,5.04,163.8,163.48,78.30780339]
[1729528031768,5.04,163.8,163.66,2.631]
[1729528032451,3.0532,163.79,163.67,5.04]
[1729528032857,3.0532,163.79,163.73,3.0542]
[1729528033063,5.04,163.8,163.67,5.04]
[1729528033863,3.0533,163.78,163.72,3.0543]
[1729528034064,5.04,163.8,163.72,3.0543]
[1729528034264,5.04,163.8,163.67,5.04]
[1729528034460,5.04,163.8,163.66,2.631]
[1729528034658,5.04,163.8,163.67,5.04]
[1729528034860,3.0539,163.75,163.68,3.055]
[1729528035161,3.8011,163.74,163.66,5.04]
[1729528035358,3.8011,163.74,163.69,3.0549]
[1729528035868,3.8011,163.74,163.7,3.0548]
[1729528036060,3.8011,163.74,163.66,5.04]
[1729528036266,66.02,163.83,163.66,5.04]
[1729528036570,5.04,163.78,163.75,3.0537]
[1729528036761,5.04,163.79,163.75,3.0537]
[1729528037366,5.04,163.79,163.76,3.0536]
[1729528037562,5.04,163.79,163.7,5.04]
[1729528038470,5.04,163.79,163.75,3.0537]
[1729528038860,5.04,163.79,163.7,5.04]
[1729528039471,5.04,163.79,163.76,3.0536]
[1729528039670,5.04,163.79,163.7,5.04]
[1729528040062,5.04,163.79,163.74,3.054]
[1729528040468,5.04,163.79,163.74,3.0539]
[1729528040768,5.04,163.79,163.7,5.04]
[1729528041368,5.04,163.79,163.76,3.0535]
[1729528041564,5.04,163.79,163.7,5.04]
[1729528042075,5.04,163.79,163.76,3.0535]
[1729528042271,5.04,163.79,163.7,5.04]
[1729528043371,5.04,163.79,163.76,3.0536]
[1729528043576,5.04,163.79,163.7,5.04]
[1729528043974,5.04,163.79,163.77,3.0533]
[1729528044170,5.04,163.79,163.7,5.04]
[1729528044366,5.04,163.79,163.77,3.0533]
[1729528044874,5.04,163.79,163.7,5.04]
[1729528045077,5.04,163.79,163.78,3.0533]
[1729528045374,2.533,163.8,163.71,6.1091]
[1729528045375,5.04,163.8,163.71,6.1091]
[1729528046471,5.04,163.8,163.78,3.0532]
[1729528047072,5.04,163.8,163.79,3.0531]
[1729528047972,5.04,163.8,163.71,6.1091]
[1729528048173,5.04,163.8,163.78,3.0532]
[1729528049480,5.04,163.8,163.71,6.1091]
[1729528049686,5.04,163.8,163.79,3.0531]
[1729528049979,5.04,163.8,163.71,6.1091]
[1729528050184,5.04,163.8,163.69,5.04]
[1729528051284,5.04,163.8,163.68,1.2604]
[1729528051471,5.04,163.8,163.67,2.4734]
[1729528051672,5.04,163.8,163.66,11.1508]
[1729528052272,3.0534,163.78,163.73,3.0541]
[1729528052482,3.8217,163.77,163.73,3.0541]
[1729528052783,5.04,163.76,163.66,11.1508]
[1729528053085,5.04,163.76,163.74,3.054]
[1729528054683,5.04,163.76,163.75,3.0538]
[1729528055890,5.04,163.76,163.66,11.1508]
[1729528056189,5.04,163.76,163.66,6.1108]
[1729528056496,5.04,163.76,163.69,3.055]
[1729528056786,5.04,163.76,163.66,6.1108]
[1729528057182,5.04,163.76,163.74,3.054]
[1729528057379,5.04,163.76,163.66,6.1108]
[1729528057786,5.04,163.76,163.69,3.055]
[1729528058091,5.04,163.76,163.66,6.1108]
[1729528058491,5.04,163.76,163.73,3.0541]
[1729528058990,5.04,163.76,163.72,3.0543]
[1729528059784,5.04,163.76,163.63,67.2981]
[1729528059987,5.04,163.76,163.64,4.94]
[1729528060291,3.0542,163.74,163.67,3.0552]
[1729528060593,3.12130201,163.74,163.64,4.94]
[1729528060788,5.04,163.76,163.64,4.94]
[1729528061493,13.76757417,163.76,163.64,4.94]
[1729528061696,13.76757417,163.76,163.7,3.0548]
[1729528061993,13.76784957,163.76,163.7,3.0548]
[1729528062301,8.0937,163.76,163.72,3.0543]
[1729528062790,3.0539,163.75,163.72,3.0543]
[1729528063585,5.04,163.76,163.64,4.94]
[1729528063785,3.8217,163.77,163.76,3.0537]
[1729528064588,3.8217,163.77,163.75,3.0538]
[1729528064789,3.8217,163.77,163.68,4.94]
[1729528065794,4.94,163.76,163.62,6.1125]
[1729528066005,4.94,163.76,163.61,1.2775]
[1729528066302,4.94,163.76,163.62,2.37951969]
[1729528066594,4.94,163.76,163.61,1.2775]
[1729528066805,4.94,163.76,163.71,3.0545]
[1729528067106,4.94,163.76,163.66,4.94]
[1729528067797,4.94,163.76,163.73,3.0541]
[1729528067989,1.2393,163.77,163.66,6.297]
[1729528068387,1.2393,163.77,163.74,3.054]
[1729528068590,4.94,163.8,163.7,4.94]
[1729528069795,1.3543,163.79,163.7,4.94]
[1729528072195,1.3543,163.79,163.71,3.0545]
[1729528072400,1.3543,163.79,163.68,4.94]
[1729528072598,1.3543,163.79,163.66,1.357]
[1729528072798,3.0539,163.75,163.66,6.297]
[1729528072997,7.94414399,163.74,163.66,6.297]
[1729528073503,4.94,163.74,163.71,3.0546]
[1729528074598,4.94,163.74,163.66,6.297]
[1729528074796,4.94,163.74,163.7,3.0546]
[1729528075501,7.95190687,163.74,163.7,3.0546]
[1729528076690,7.95190687,163.74,163.69,3.0548]
[1729528077290,11.00590687,163.74,163.69,3.0548]
[1729528077497,7.95190687,163.74,163.67,3.0552]
[1729528077697,2.6444,163.73,163.67,3.0552]
[1729528078198,2.6444,163.73,163.63,6.178]
[1729528078199,2.6444,163.73,163.63,4.94]
[1729528078401,1.276,163.72,163.63,4.94]
[1729528078905,3.0547,163.71,163.66,3.0554]
[1729528079099,4.94,163.7,163.66,3.0554]
[1729528080290,4.94,163.7,163.6,6.2666]
[1729528081504,2.6444,163.73,163.69,3.055]
[1729528081698,1.2993,163.73,163.64,4.94]
[1729528081900,4.94,163.74,163.7,3.0546]
[1729528082403,10.99669547,163.74,163.68,3.0551]
[1729528082802,7.94249547,163.74,163.64,4.94]
[1729528083102,4.94,163.74,163.71,3.0545]
[1729528084608,6.861,163.77,163.72,3.0544]
[1729528084811,4.94,163.75,163.72,3.0544]
[1729528085705,2.98306532,163.74,163.72,3.0544]
[1729528085905,2.98306532,163.74,163.71,3.0545]
[1729528086302,3.0541,163.74,163.64,4.94]
[1729528086502,6.17803739,163.74,163.64,4.94]
[1729528086696,4.94,163.75,163.64,4.94]
[1729528087505,3.04876488,163.74,163.64,4.94]
[1729528087699,4.94,163.75,163.71,3.0545]
[1729528087899,3.02389216,163.74,163.71,3.0545]
[1729528088200,3.0792054,163.73,163.71,3.0545]
[1729528088401,4.94,163.75,163.72,3.0544]
[1729528089207,3.0018891,163.74,163.72,3.0544]
[1729528089407,4.94,163.75,163.72,3.0544]
[1729528089605,4.94,163.75,163.73,3.0542]
[1729528090409,4.94,163.75,163.74,3.054]
[1729528090609,3.0529,163.8,163.68,4.96]
[1729528090808,1.3082,163.82,163.69,1.3556]
[1729528090809,4.96,163.78,163.69,1.3556]
[1729528091004,4.96,163.78,163.75,3.0538]
[1729528091507,4.96,163.78,163.75,3.0537]
[1729528092905,4.96,163.78,163.76,3.0536]
[1729528093209,4.96,163.78,163.67,4.96]
[1729528093411,4.96,163.78,163.73,3.0541]
[1729528093620,4.96,163.78,163.67,4.96]
[1729528094006,8.0134,163.78,163.74,3.0539]
[1729528094206,8.0134,163.78,163.67,4.96]
[1729528095212,8.0134,163.78,163.7,3.0547]
[1729528095514,8.0134,163.78,163.67,4.96]
[1729528096315,4.96,163.78,163.67,7.99214331]
[1729528096518,4.96,163.78,163.74,3.0539]
[1729528096815,4.96,163.78,163.67,7.99214331]
[1729528097113,8.73271593,163.8,163.67,7.99214331]
[1729528097313,24.57961767,163.82,163.67,7.99214331]
[1729528097512,4.96,163.81,163.77,3.0533]
[1729528098112,11.78726135,163.81,163.77,3.0533]
[1729528098320,4.96,163.81,163.77,3.0533]
[1729528098515,12.66646135,163.82,163.71,4.96]
[1729528098818,17.62646135,163.82,163.72,3.7891]
[1729528099220,12.66646135,163.82,163.72,3.7891]
[1729528099512,3.9319,163.82,163.75,3.0538]
[1729528099815,20.65369684,163.89,163.76,4.96]
[1729528100021,20.65369684,163.89,163.86,3.0517]
[1729528100319,8.73564181,163.89,163.86,3.0517]
[1729528100520,3.07986551,163.9,163.86,3.0517]
[1729528100710,13.2295537,163.92,163.82,4.96]
[1729528101018,4.38388318,163.92,163.78,2.37536877]
[1729528101210,4.38388318,163.92,163.85,3.052]
[1729528101822,4.38388318,163.92,163.82,4.96]
[1729528102119,4.38388318,163.92,163.84,3.0521]
[1729528102318,3.0509,163.91,163.84,3.0521]
[1729528102623,4.38388318,163.92,163.78,1.2555]
[1729528102624,4.96,163.9,163.78,1.2555]
[1729528102812,4.96,163.9,163.83,3.0523]
[1729528103008,3.0514,163.89,163.83,3.0523]
[1729528103813,3.0514,163.89,163.84,3.0522]
[1729528104326,3.0514,163.89,163.79,4.96]
[1729528104523,3.0514,163.89,163.85,3.052]
[1729528104828,3.0514,163.89,163.85,1.0072]
[1729528105122,3.0514,163.89,163.79,4.96]
[1729528105622,4.96,163.9,163.79,4.96]
[1729528105623,8.0111,163.9,163.86,3.0518]
[1729528105814,8.0111,163.9,163.79,4.96]
[1729528106329,4.96,163.9,163.79,4.96]
[1729528106531,3.0512,163.89,163.74,3.02051205]
[1729528106731,3.0512,163.89,163.75,4.96]
[1729528106918,41.59,163.9,163.73,6.1081]
[1729528107119,1.0,163.88,163.72,2.5245]
[1729528107320,1.3149,163.87,163.72,2.5245]
[1729528107627,6.2992,163.86,163.72,2.5245]
[1729528108126,3.0536,163.77,163.73,3.0542]
[1729528108426,3.0536,163.77,163.67,4.96]
[1729528108427,3.07969978,163.76,163.67,4.96]
[1729528108728,4.96,163.77,163.7,3.0548]
[1729528108929,4.96,163.77,163.67,4.96]
[1729528109328,4.96,163.77,163.75,3.0537]
[1729528110428,4.96,163.77,163.76,3.0537]
[1729528111022,3.03755395,163.79,163.77,3.0534]
[1729528111023,7.99755395,163.79,163.77,3.0534]
[1729528111222,4.96,163.79,163.77,3.0534]
[1729528111734,3.1157267,163.78,163.77,3.0534]
[1729528112128,3.04209558,163.78,163.77,3.0534]
[1729528112427,4.96,163.79,163.77,3.0534]
[1729528112730,7.95840575,163.79,163.77,3.0534]
[1729528114031,7.95840575,163.79,163.76,3.0536]
[1729528114234,7.95840575,163.79,163.67,4.96]
[1729528114731,7.95840575,163.79,163.7,3.0547]
[1729528114932,7.95840575,163.79,163.67,4.96]
[1729528115839,2.99840575,163.79,163.76,3.0535]
[1729528116926,4.3846,163.84,163.78,3.0533]
[1729528117234,4.98,163.83,163.78,3.0533]
[1729528117435,7.98169985,163.83,163.79,3.053]
[1729528117634,7.98169985,163.83,163.72,1.3073]
[1729528117836,1.244,163.84,163.72,1.3073]
[1729528118133,1.244,163.84,163.82,3.0524]
[1729528118333,4.98,163.85,163.82,3.0524]
[1729528118532,1.3472,163.87,163.79,3.053]
[1729528118533,6.3272,163.87,163.79,3.053]
[1729528118737,6.3272,163.87,163.76,4.98]
[1729528119632,6.3272,163.87,163.8,3.0529]
[1729528120541,6.3272,163.87,163.78,3.0533]
[1729528120742,24.6372,163.87,163.73,4.98]
[1729528121439,24.6372,163.87,163.77,3.0534]
[1729528121634,24.6372,163.87,163.73,4.98]
[1729528122033,3.0524,163.83,163.79,3.0531]
[1729528122226,4.98,163.82,163.79,3.0531]
[1729528122632,6.2797,163.82,163.79,3.0531]
[1729528122943,9.3323,163.82,163.79,3.0531]
[1729528124532,9.3323,163.82,163.73,4.98]
[1729528124937,6.2797,163.82,163.73,4.98]
[1729528125536,1.2997,163.82,163.81,3.0527]
[1729528125743,7.96062532,163.83,163.73,11.0883]
[1729528125943,4.98,163.83,163.73,11.0883]
[1729528126441,8.05201667,163.83,163.73,11.0883]
[1729528126639,3.0519,163.86,163.73,11.0883]
[1729528126938,4.98,163.85,163.73,11.0883]
[1729528127145,4.98,163.86,163.73,11.0883]
[1729528127344,1.3472,163.87,163.77,3.0534]
[1729528127535,4.98,163.86,163.77,4.98]
[1729528127931,4.98,163.86,163.8,3.0528]
[1729528128137,4.98,163.86,163.78,1.343]